Workbook

Sheet Лист1
A1: МБОУ Нижнемактаминская СОШ1 | N1: 2023-12-28
B2: 1 - 4 классы | D2: Меню | F2: 1\4 | I2: 5 - 11 классы | K2: Меню | M2: 1\4
A3: Завтрак | H3: Завтрак
A4: Блюдо | B4: Выход, г | C4: Калорийность | D4: Белки | E4: Жиры | F4: Углеводы | H4: Блюдо | I4: Выход, г | J4: Калорийность | K4: Белки | L4: Жиры | M4: Углеводы
A5: Салат из свежей капусты | B5: 60 | C5: 3624 | D5: 0.79 | E5: 1.95 | F5: 3.88 | H5: Салат из свежей капусты | I5: 100 | J5: 60.4 | K5: 1.31 | L5: 3.25 | M5: 6.47
A6: Рыба,тушеная в\т с овощами | B6: 50\50 | C6: 105 | D6: 9.15 | E6: 5.62 | F6: 7.8 | H6: Рыба,тушеная в\т с овощами | I6: 50\50 | J6: 105 | K6: 9.15 | L6: 5.62 | M6: 7.8
A7: Картофельное пюре | B7: 150\5 | C7: 170.25 | D7: 3.1 | E7: 8.43 | F7: 20.51 | H7: Картофельное пюре | I7: 180\3 | J7: 184.5 | K7: 3.71 | L7: 7.95 | M7: 24.57
A8: Компот из свежих яблок | B8: 200 | C8: 58.74 | D8: 0.16 | E8: 0.16 | F8: 13.91 | H8: Компот из свежих яблок | I8: 200 | J8: 58.74 | K8: 0.16 | L8: 0.16 | M8: 13.91
A9: Пшеничный хлеб | B9: 20 | C9: 47 | D9: 1.52 | E9: 0.16 | F9: 9.84 | H9: Пшеничный хлеб | I9: 30 | J9: 71 | K9: 2.28 | L9: 0.24 | M9: 14.76
A10: Хлеб ржаной | B10: 20 | C10: 39.6 | D10: 1.32 | E10: 0.24 | F10: 7.92 | H10: Хлеб ржаной | I10: 25 | J10: 49.5 | K10: 1.65 | L10: 0.3 | M10: 9.9
A11: Итого | C11: =SUM(C5:C10) -> 4044.59 | D11: =SUM(D5:D10) -> 15.25 | E11: =SUM(E5:E10) -> 16.56 | F11: =SUM(F5:F10) -> 63.86 | H11: Итого | J11: =SUM(J5:J10) -> 529.14 | K11: =SUM(K5:K10) -> 18.26 | L11: =SUM(L5:L10) -> 17.52 | M11: =SUM(M5:M10) -> 77.41
A12: Обед ГПД | H12: Субсидия
A13: Шулпа с говядиной и овощами | B13: 250\25 | C13: 210.4 | D13: 12.04 | E13: 9.26 | F13: 18.75 | H13: Булочка школьная | I13: 50 | J13: 120.833 | K13: 4.18 | L13: 1.6 | M13: 22.4
A14: Напиток из сухофруктов | B14: 200 | C14: 92.9 | D14: 0.66 | E14: 0.09 | F14: 22.03 | H14: Компот из свежих яблок | I14: 200 | J14: 111.6 | K14: 0.16 | L14: 0.16 | M14: 27.88
A15: Хлеб ржаной | B15: 30 | C15: 59.4 | D15: 1.98 | E15: 0.36 | F15: 11.88 | H15: Итого | J15: =SUM(J13:J14) -> 232.433 | K15: =SUM(K13:K14) -> 4.34 | L15: =SUM(L13:L14) -> 1.76 | M15: =SUM(M13:M14) -> 50.28
A16: Итого | C16: =SUM(C13:C15) -> 362.7 | D16: =SUM(D13:D15) -> 14.68 | E16: =SUM(E13:E15) -> 9.71 | F16: =SUM(F13:F15) -> 52.66 | J16: =SUM(J13:J15) -> 464.866 | K16: =SUM(K13:K15) -> 8.68 | L16: =SUM(L13:L15) -> 3.52 | M16: =SUM(M13:M15) -> 100.56
A18: Директор | D18: Хайбрахманова Ф.А.
A19: Зав.столовой | D19: Куприянова Г.В.
A20: Ответственная за питание | D20: Гафиятулина Р.Г.
